[Event "Titled Tuesday Blitz March 01 Early 2022"]
[White "Zhigalko, Sergei"]
[Black "Kozak, Antoni"]
[WhiteFideId "13502956"]
[BlackFideId "21832030"]
[WhiteElo "2662"]
[BlackElo "2232"]
[Result "1-0"]
[Round "07"]
[TimeControl "180+1"]
[Date "2022.03.01"]
[WhiteClock "0:01:40"]
[BlackClock "0:00:02"]

1. e4 {[%clk 0:03:00]}  c5 {[%clk 0:02:56]} 2. Nf3 {[%clk 0:03:00]}  d6 {[%clk 0:02:57]} 3. d4 {[%clk 0:03:00]}  cxd4 {[%clk 0:02:57]} 4. Qxd4 {[%clk 0:03:01]}  Nc6 {[%clk 0:02:54]} 5. Bb5 {[%clk 0:03:01]}  Bd7 {[%clk 0:02:55]} 6. Bxc6 {[%clk 0:03:01]}  Bxc6 {[%clk 0:02:55]} 7. Nc3 {[%clk 0:03:01]}  e6 {[%clk 0:02:49]} 8. Bg5 {[%clk 0:03:00]}  Nf6 {[%clk 0:02:43]} 9. O-O-O {[%clk 0:03:00]}  Be7 {[%clk 0:02:42]} 10. Rhe1 {[%clk 0:03:00]}  h6 {[%clk 0:02:21]} 11. Bh4 {[%clk 0:02:59]}  e5 {[%clk 0:02:13]} 12. Qd3 {[%clk 0:02:58]}  g5 {[%clk 0:02:13]} 13. Bg3 {[%clk 0:02:54]}  Qa5 {[%clk 0:02:10]} 14. Kb1 {[%clk 0:02:38]}  b5 {[%clk 0:01:47]} 15. Nd5 {[%clk 0:02:28]}  Bxd5 {[%clk 0:01:29]} 16. exd5 {[%clk 0:02:28]}  e4 {[%clk 0:01:16]} 17. Qd4 {[%clk 0:02:15]}  O-O-O {[%clk 0:00:26]} 18. Nd2 {[%clk 0:02:08]}  Rhe8 {[%clk 0:00:24]} 19. Nxe4 {[%clk 0:01:59]}  Nxe4 {[%clk 0:00:24]} 20. Qxe4 {[%clk 0:01:54]}  Kb7 {[%clk 0:00:20]} 21. Qh7 {[%clk 0:01:47]}  Qc7 {[%clk 0:00:02]} 22. Qxf7 {[%clk 0:01:44]}  h5 {[%clk 0:00:03]} 23. Qxh5 {[%clk 0:01:42]}  Qd7 {[%clk 0:00:02]} 24. Qf7 {[%clk 0:01:40]}  Bf8 {[%clk 0:00:02]} 1-0


[Site "https://www.chess.com"]

[Event "Titled Tuesday Blitz March 01 Early 2022"]
[White "Zia, Tahsin Tajwar"]
[Black "Danielian, Vardan"]
[WhiteFideId "10211888"]
[BlackFideId "13301594"]
[WhiteElo "1800"]
[BlackElo "2486"]
[Result "1/2-1/2"]
[Round "07"]
[TimeControl "180+1"]
[Date "2022.03.01"]
[WhiteClock "0:00:09"]
[BlackClock "0:00:04"]

1. d4 {[%clk 0:03:00]}  Nf6 {[%clk 0:02:59]} 2. Bf4 {[%clk 0:02:59]}  d6 {[%clk 0:02:52]} 3. Nc3 {[%clk 0:02:58]}  e6 {[%clk 0:02:49]} 4. e4 {[%clk 0:02:57]}  Be7 {[%clk 0:02:50]} 5. f3 {[%clk 0:02:54]}  O-O {[%clk 0:02:47]} 6. Qd2 {[%clk 0:02:53]}  d5 {[%clk 0:02:24]} 7. e5 {[%clk 0:02:49]}  Nfd7 {[%clk 0:02:20]} 8. O-O-O {[%clk 0:02:43]}  c5 {[%clk 0:02:20]} 9. Nge2 {[%clk 0:02:39]}  Nc6 {[%clk 0:02:12]} 10. h4 {[%clk 0:02:35]}  b5 {[%clk 0:02:11]} 11. Bg5 {[%clk 0:02:26]}  b4 {[%clk 0:02:07]} 12. Na4 {[%clk 0:02:20]}  Qa5 {[%clk 0:01:41]} 13. Bxe7 {[%clk 0:02:13]}  Qxa4 {[%clk 0:01:30]} 14. Bf6 {[%clk 0:02:09]}  gxf6 {[%clk 0:01:25]} 15. Qh6 {[%clk 0:02:04]}  Kh8 {[%clk 0:00:32]} 16. Rh3 {[%clk 0:02:04]}  Rg8 {[%clk 0:00:27]} 17. exf6 {[%clk 0:01:51]}  Rg6 {[%clk 0:00:23]} 18. Qf4 {[%clk 0:01:46]}  Nxf6 {[%clk 0:00:17]} 19. h5 {[%clk 0:01:43]}  Nxh5 {[%clk 0:00:17]} 20. Rxh5 {[%clk 0:01:42]}  Bd7 {[%clk 0:00:15]} 21. Qxf7 {[%clk 0:01:34]}  Rg7 {[%clk 0:00:16]} 22. Qf6 {[%clk 0:01:33]}  Kg8 {[%clk 0:00:16]} 23. Rg5 {[%clk 0:01:30]}  Rxg5 {[%clk 0:00:16]} 24. Qxg5+ {[%clk 0:01:31]}  Kf7 {[%clk 0:00:17]} 25. Qh5+ {[%clk 0:01:29]}  Ke7 {[%clk 0:00:17]} 26. Qxh7+ {[%clk 0:01:29]}  Kd6 {[%clk 0:00:17]} 27. Qh2+ {[%clk 0:01:24]}  Ke7 {[%clk 0:00:16]} 28. dxc5 {[%clk 0:01:24]}  Qxa2 {[%clk 0:00:16]} 29. Qd6+ {[%clk 0:01:24]}  Ke8 {[%clk 0:00:16]} 30. Nf4 {[%clk 0:01:14]}  Qa1+ {[%clk 0:00:16]} 31. Kd2 {[%clk 0:01:14]}  Qxb2 {[%clk 0:00:17]} 32. Bd3 {[%clk 0:01:14]}  Qc3+ {[%clk 0:00:15]} 33. Kc1 {[%clk 0:01:11]}  Qa1+ {[%clk 0:00:13]} 34. Kd2 {[%clk 0:01:11]}  Qc3+ {[%clk 0:00:13]} 35. Ke2 {[%clk 0:01:12]}  Qe5+ {[%clk 0:00:13]} 36. Qxe5 {[%clk 0:01:12]}  Nxe5 {[%clk 0:00:14]} 37. g4 {[%clk 0:01:08]}  a5 {[%clk 0:00:12]} 38. g5 {[%clk 0:01:07]}  Ke7 {[%clk 0:00:13]} 39. Rh1 {[%clk 0:01:05]}  Rf8 {[%clk 0:00:13]} 40. Rh7+ {[%clk 0:01:00]}  Rf7 {[%clk 0:00:12]} 41. g6 {[%clk 0:01:00]}  Rxh7 {[%clk 0:00:13]} 42. gxh7 {[%clk 0:01:00]}  Nf7 {[%clk 0:00:14]} 43. Ng6+ {[%clk 0:00:56]}  Kf6 {[%clk 0:00:13]} 44. h8=Q+ {[%clk 0:00:48]}  Nxh8 {[%clk 0:00:13]} 45. Nxh8 {[%clk 0:00:49]}  a4 {[%clk 0:00:14]} 46. Kd2 {[%clk 0:00:48]}  a3 {[%clk 0:00:14]} 47. Kc1 {[%clk 0:00:48]}  Be8 {[%clk 0:00:14]} 48. Ng6 {[%clk 0:00:43]}  e5 {[%clk 0:00:14]} 49. Nh4 {[%clk 0:00:41]}  Bc6 {[%clk 0:00:14]} 50. Ng2 {[%clk 0:00:38]}  e4 {[%clk 0:00:14]} 51. fxe4 {[%clk 0:00:39]}  dxe4 {[%clk 0:00:14]} 52. Bc4 {[%clk 0:00:39]}  Ke5 {[%clk 0:00:15]} 53. Ne3 {[%clk 0:00:36]}  Kd4 {[%clk 0:00:15]} 54. Kd2 {[%clk 0:00:36]}  Bb5 {[%clk 0:00:12]} 55. Bb3 {[%clk 0:00:23]}  Kxc5 {[%clk 0:00:12]} 56. Nf5 {[%clk 0:00:18]}  Bc4 {[%clk 0:00:10]} 57. Ne3 {[%clk 0:00:10]}  Bxb3 {[%clk 0:00:10]} 58. cxb3 {[%clk 0:00:11]}  a2 {[%clk 0:00:07]} 59. Nc2 {[%clk 0:00:11]}  Kd6 {[%clk 0:00:07]} 60. Ke3 {[%clk 0:00:09]}  Ke5 {[%clk 0:00:07]} 61. Na1 {[%clk 0:00:08]}  Kf5 {[%clk 0:00:07]} 62. Nc2 {[%clk 0:00:08]}  Ke5 {[%clk 0:00:07]} 63. Na1 {[%clk 0:00:09]}  Kf5 {[%clk 0:00:08]} 64. Ke2 {[%clk 0:00:09]}  Kf4 {[%clk 0:00:08]} 65. Nc2 {[%clk 0:00:09]}  e3 {[%clk 0:00:08]} 66. Na1 {[%clk 0:00:09]}  Ke4 {[%clk 0:00:08]} 67. Nc2 {[%clk 0:00:09]}  Kf4 {[%clk 0:00:09]} 68. Na1 {[%clk 0:00:09]}  Ke4 {[%clk 0:00:09]} 69. Nc2 {[%clk 0:00:09]}  Kf4 {[%clk 0:00:04]} 1/2-1/2


[Site "https://www.chess.com"]

[Event "Titled Tuesday Blitz March 01 Early 2022"]
[White "Zierk, Steven"]
[Black "Brodowski, Piotr"]
[WhiteFideId "2034255"]
[BlackFideId "1124480"]
[WhiteElo "2494"]
[BlackElo "2422"]
[Result "1-0"]
[Round "07"]
[TimeControl "180+1"]
[Date "2022.03.01"]
[WhiteClock "0:00:48"]
[BlackClock "0:00:06"]

1. b3 {[%clk 0:03:00]}  e5 {[%clk 0:02:51]} 2. Bb2 {[%clk 0:03:01]}  d6 {[%clk 0:02:51]} 3. c4 {[%clk 0:02:58]}  g6 {[%clk 0:02:50]} 4. e3 {[%clk 0:02:56]}  Bg7 {[%clk 0:02:50]} 5. Nf3 {[%clk 0:02:56]}  Nf6 {[%clk 0:02:47]} 6. d4 {[%clk 0:02:55]}  exd4 {[%clk 0:02:47]} 7. Nxd4 {[%clk 0:02:54]}  O-O {[%clk 0:02:47]} 8. Be2 {[%clk 0:02:54]}  Bd7 {[%clk 0:02:47]} 9. Bf3 {[%clk 0:02:50]}  Nc6 {[%clk 0:02:47]} 10. Nxc6 {[%clk 0:02:51]}  Bxc6 {[%clk 0:02:47]} 11. Bxc6 {[%clk 0:02:51]}  bxc6 {[%clk 0:02:45]} 12. O-O {[%clk 0:02:51]}  Rb8 {[%clk 0:02:39]} 13. Nc3 {[%clk 0:02:49]}  Re8 {[%clk 0:02:39]} 14. Ne2 {[%clk 0:02:41]}  c5 {[%clk 0:02:27]} 15. Qc2 {[%clk 0:02:27]}  Qd7 {[%clk 0:02:24]} 16. Rad1 {[%clk 0:02:24]}  a5 {[%clk 0:02:19]} 17. Nc3 {[%clk 0:02:24]}  h5 {[%clk 0:02:12]} 18. Na4 {[%clk 0:02:23]}  Qe6 {[%clk 0:02:00]} 19. Bc3 {[%clk 0:02:20]}  Ra8 {[%clk 0:01:56]} 20. Rfe1 {[%clk 0:02:14]}  h4 {[%clk 0:01:57]} 21. h3 {[%clk 0:02:13]}  Ne4 {[%clk 0:01:45]} 22. Bxg7 {[%clk 0:02:12]}  Kxg7 {[%clk 0:01:46]} 23. f3 {[%clk 0:02:12]}  Ng3 {[%clk 0:01:42]} 24. Nc3 {[%clk 0:02:12]}  c6 {[%clk 0:01:29]} 25. Rd3 {[%clk 0:02:07]}  Nf5 {[%clk 0:01:25]} 26. Qd2 {[%clk 0:01:57]}  Qe5 {[%clk 0:01:06]} 27. e4 {[%clk 0:01:32]}  Nd4 {[%clk 0:01:06]} 28. Ne2 {[%clk 0:01:32]}  Nxe2+ {[%clk 0:01:06]} 29. Rxe2 {[%clk 0:01:28]}  a4 {[%clk 0:01:06]} 30. b4 {[%clk 0:01:22]}  cxb4 {[%clk 0:01:03]} 31. Qxb4 {[%clk 0:01:22]}  Reb8 {[%clk 0:00:57]} 32. Qxd6 {[%clk 0:01:18]}  Rb1+ {[%clk 0:00:22]} 33. Kf2 {[%clk 0:01:18]}  Qg5 {[%clk 0:00:13]} 34. f4 {[%clk 0:01:13]}  Qh5 {[%clk 0:00:11]} 35. Qxc6 {[%clk 0:01:09]}  Rab8 {[%clk 0:00:10]} 36. Qd5 {[%clk 0:01:07]}  Qh8 {[%clk 0:00:07]} 37. Qe5+ {[%clk 0:01:04]}  Kh7 {[%clk 0:00:07]} 38. Qxh8+ {[%clk 0:01:03]}  Kxh8 {[%clk 0:00:08]} 39. Rc3 {[%clk 0:01:01]}  R1b2 {[%clk 0:00:05]} 40. Rcc2 {[%clk 0:01:01]}  a3 {[%clk 0:00:04]} 41. Ke3 {[%clk 0:01:01]}  Kg7 {[%clk 0:00:03]} 42. c5 {[%clk 0:00:56]}  Kf6 {[%clk 0:00:02]} 43. c6 {[%clk 0:00:56]}  Rxc2 {[%clk 0:00:02]} 44. Rxc2 {[%clk 0:00:56]}  Rb2 {[%clk 0:00:01]} 45. Kd3 {[%clk 0:00:56]}  Rb8 {[%clk 0:00:01]} 46. c7 {[%clk 0:00:54]}  Rc8 {[%clk 0:00:01]} 47. Kd4 {[%clk 0:00:52]}  Ke6 {[%clk 0:00:02]} 48. f5+ {[%clk 0:00:51]}  gxf5 {[%clk 0:00:02]} 49. exf5+ {[%clk 0:00:51]}  Kd6 {[%clk 0:00:02]} 50. Rc3 {[%clk 0:00:48]}  f6 {[%clk 0:00:02]} 51. Rc2 {[%clk 0:00:45]}  Rxc7 {[%clk 0:00:02]} 52. Rxc7 {[%clk 0:00:45]}  Kxc7 {[%clk 0:00:03]} 53. Kc5 {[%clk 0:00:45]}  Kd7 {[%clk 0:00:01]} 54. Kd5 {[%clk 0:00:46]}  Ke7 {[%clk 0:00:01]} 55. Kc6 {[%clk 0:00:46]}  Kf7 {[%clk 0:00:02]} 56. Kd6 {[%clk 0:00:46]}  Kf8 {[%clk 0:00:02]} 57. Ke6 {[%clk 0:00:47]}  Kg7 {[%clk 0:00:03]} 58. Ke7 {[%clk 0:00:47]}  Kh6 {[%clk 0:00:04]} 59. Kxf6 {[%clk 0:00:48]}  Kh5 {[%clk 0:00:05]} 60. Ke5 {[%clk 0:00:47]}  Kg5 {[%clk 0:00:05]} 61. f6 {[%clk 0:00:47]}  Kg6 {[%clk 0:00:06]} 62. Ke6 {[%clk 0:00:48]} 1-0


[Site "https://www.chess.com"]

[Event "Titled Tuesday Blitz March 01 Early 2022"]
[White "Al-Tarboush, Ward"]
[Black "Prado Lobo, Jonas"]
[WhiteFideId "7601450"]
[BlackFideId "32050666"]
[WhiteElo "2276"]
[BlackElo "2199"]
[Result "0-1"]
[Round "08"]
[TimeControl "180+1"]
[Date "2022.03.01"]
[WhiteClock "0:01:56"]
[BlackClock "0:00:33"]

1. e4 {[%clk 0:03:00]}  e6 {[%clk 0:02:59]} 2. d4 {[%clk 0:03:00]}  d5 {[%clk 0:03:00]} 3. exd5 {[%clk 0:03:01]}  exd5 {[%clk 0:03:00]} 4. Bd3 {[%clk 0:03:02]}  Nc6 {[%clk 0:03:00]} 5. Nf3 {[%clk 0:03:01]}  Bg4 {[%clk 0:03:00]} 6. c3 {[%clk 0:03:01]}  Bd6 {[%clk 0:03:00]} 7. O-O {[%clk 0:03:02]}  Qd7 {[%clk 0:03:00]} 8. Re1+ {[%clk 0:03:03]}  Nge7 {[%clk 0:03:00]} 9. Nbd2 {[%clk 0:03:04]}  O-O-O {[%clk 0:02:56]} 10. b4 {[%clk 0:03:03]}  Ng6 {[%clk 0:02:55]} 11. Nb3 {[%clk 0:03:02]}  Rde8 {[%clk 0:02:41]} 12. Be3 {[%clk 0:03:01]}  f5 {[%clk 0:02:36]} 13. b5 {[%clk 0:02:59]}  Nd8 {[%clk 0:02:30]} 14. Nc5 {[%clk 0:02:59]}  Qf7 {[%clk 0:02:22]} 15. Qa4 {[%clk 0:02:54]}  Kb8 {[%clk 0:02:09]} 16. Ng5 {[%clk 0:02:53]}  Qe7 {[%clk 0:01:40]} 17. Bd2 {[%clk 0:02:52]}  Bxc5 {[%clk 0:01:40]} 18. Rxe7 {[%clk 0:02:50]}  Bxe7 {[%clk 0:01:41]} 19. h3 {[%clk 0:02:49]}  Bh5 {[%clk 0:01:37]} 20. Bxf5 {[%clk 0:02:48]}  Bd6 {[%clk 0:01:19]} 21. Nf7 {[%clk 0:02:46]}  Nxf7 {[%clk 0:01:19]} 22. g4 {[%clk 0:02:43]}  Nh4 {[%clk 0:01:19]} 23. Bd7 {[%clk 0:02:41]}  Re7 {[%clk 0:01:08]} 24. b6 {[%clk 0:02:40]}  axb6 {[%clk 0:01:03]} 25. gxh5 {[%clk 0:02:40]}  Nf3+ {[%clk 0:01:03]} 26. Kg2 {[%clk 0:02:40]}  Nxd2 {[%clk 0:01:03]} 27. Bb5 {[%clk 0:02:35]}  Nh6 {[%clk 0:00:54]} 28. Bd3 {[%clk 0:02:35]}  Ne4 {[%clk 0:00:48]} 29. Bxe4 {[%clk 0:02:32]}  Rxe4 {[%clk 0:00:47]} 30. Qd7 {[%clk 0:02:31]}  Re7 {[%clk 0:00:47]} 31. Qb5 {[%clk 0:02:30]}  Rhe8 {[%clk 0:00:46]} 32. Qxd5 {[%clk 0:02:29]}  Rf8 {[%clk 0:00:42]} 33. a4 {[%clk 0:02:28]}  Nf5 {[%clk 0:00:40]} 34. a5 {[%clk 0:02:23]}  Nh4+ {[%clk 0:00:40]} 35. Kf1 {[%clk 0:02:23]}  Bg3 {[%clk 0:00:34]} 36. Ra2 {[%clk 0:02:19]}  Ref7 {[%clk 0:00:34]} 37. axb6 {[%clk 0:02:02]}  Rxf2+ {[%clk 0:00:34]} 38. Rxf2 {[%clk 0:01:56]}  Rxf2+ {[%clk 0:00:34]} 39. Ke1 {[%clk 0:01:56]}  Rf5+ {[%clk 0:00:33]} 0-1


[Site "https://www.chess.com"]

[Event "Titled Tuesday Blitz March 01 Early 2022"]
[White "Ambartsumova, Karina"]
[Black "Iljin, Timofey"]
[WhiteFideId "4166299"]
[BlackFideId "14110180"]
[WhiteElo "2262"]
[BlackElo "2396"]
[Result "1-0"]
[Round "08"]
[TimeControl "180+1"]
[Date "2022.03.01"]
[WhiteClock "0:00:11"]
[BlackClock "0:00:11"]

1. c4 {[%clk 0:03:00]}  f5 {[%clk 0:02:59]} 2. Nf3 {[%clk 0:03:00]}  Nf6 {[%clk 0:02:59]} 3. g3 {[%clk 0:02:58]}  g6 {[%clk 0:03:00]} 4. Bg2 {[%clk 0:02:58]}  Bg7 {[%clk 0:03:01]} 5. O-O {[%clk 0:02:58]}  O-O {[%clk 0:03:02]} 6. d4 {[%clk 0:02:57]}  d6 {[%clk 0:03:02]} 7. b3 {[%clk 0:02:55]}  Qe8 {[%clk 0:03:02]} 8. Bb2 {[%clk 0:02:54]}  Nc6 {[%clk 0:03:03]} 9. d5 {[%clk 0:02:52]}  Nb8 {[%clk 0:03:03]} 10. Nc3 {[%clk 0:02:39]}  a5 {[%clk 0:03:02]} 11. Nb5 {[%clk 0:02:34]}  Na6 {[%clk 0:03:02]} 12. Nfd4 {[%clk 0:02:29]}  Bd7 {[%clk 0:03:02]} 13. Qd2 {[%clk 0:02:11]}  c5 {[%clk 0:02:59]} 14. dxc6 {[%clk 0:02:01]}  bxc6 {[%clk 0:02:59]} 15. Nc3 {[%clk 0:02:00]}  Nc5 {[%clk 0:02:56]} 16. Qc2 {[%clk 0:01:53]}  e5 {[%clk 0:02:53]} 17. Nf3 {[%clk 0:01:50]}  Rd8 {[%clk 0:02:53]} 18. Rad1 {[%clk 0:01:49]}  Be6 {[%clk 0:02:47]} 19. Ng5 {[%clk 0:01:48]}  Bc8 {[%clk 0:02:47]} 20. Ba3 {[%clk 0:01:48]}  h6 {[%clk 0:02:42]} 21. Nh3 {[%clk 0:01:46]}  e4 {[%clk 0:02:31]} 22. Rxd6 {[%clk 0:01:43]}  Rxd6 {[%clk 0:02:19]} 23. Bxc5 {[%clk 0:01:42]}  Qe5 {[%clk 0:02:18]} 24. Bxd6 {[%clk 0:01:40]}  Qxd6 {[%clk 0:02:19]} 25. Rd1 {[%clk 0:01:30]}  Qe5 {[%clk 0:02:08]} 26. Nf4 {[%clk 0:01:27]}  Kh7 {[%clk 0:02:08]} 27. e3 {[%clk 0:01:22]}  g5 {[%clk 0:01:58]} 28. Nfe2 {[%clk 0:01:22]}  Ng4 {[%clk 0:01:18]} 29. h3 {[%clk 0:01:09]}  Nf6 {[%clk 0:01:06]} 30. Na4 {[%clk 0:01:06]}  Nh5 {[%clk 0:00:58]} 31. Qc3 {[%clk 0:00:41]}  Qc7 {[%clk 0:00:49]} 32. Qd2 {[%clk 0:00:41]}  Be6 {[%clk 0:00:17]} 33. Qd6 {[%clk 0:00:38]}  Qf7 {[%clk 0:00:16]} 34. Qxc6 {[%clk 0:00:36]}  Kh8 {[%clk 0:00:13]} 35. Nc5 {[%clk 0:00:33]}  Bc8 {[%clk 0:00:13]} 36. Qd6 {[%clk 0:00:25]}  f4 {[%clk 0:00:12]} 37. exf4 {[%clk 0:00:25]}  gxf4 {[%clk 0:00:12]} 38. Nxf4 {[%clk 0:00:24]}  Bf6 {[%clk 0:00:11]} 39. Nxh5 {[%clk 0:00:21]}  Rd8 {[%clk 0:00:05]} 40. Qxd8+ {[%clk 0:00:09]}  Bxd8 {[%clk 0:00:05]} 41. Rxd8+ {[%clk 0:00:10]}  Kh7 {[%clk 0:00:05]} 42. Nf4 {[%clk 0:00:09]}  Bf5 {[%clk 0:00:05]} 43. Rd5 {[%clk 0:00:08]}  Bc8 {[%clk 0:00:03]} 44. Bxe4+ {[%clk 0:00:07]}  Kg7 {[%clk 0:00:04]} 45. Nh5+ {[%clk 0:00:06]}  Kf8 {[%clk 0:00:05]} 46. Nf4 {[%clk 0:00:06]}  Ke7 {[%clk 0:00:04]} 47. Re5+ {[%clk 0:00:06]}  Kd6 {[%clk 0:00:04]} 48. Rd5+ {[%clk 0:00:06]}  Kc7 {[%clk 0:00:04]} 49. Ncd3 {[%clk 0:00:05]}  Be6 {[%clk 0:00:04]} 50. Rd4 {[%clk 0:00:05]}  Bd7 {[%clk 0:00:04]} 51. Ne5 {[%clk 0:00:05]}  Qf6 {[%clk 0:00:02]} 52. Rxd7+ {[%clk 0:00:05]}  Kc8 {[%clk 0:00:02]} 53. Rd5 {[%clk 0:00:05]}  Kc7 {[%clk 0:00:02]} 54. Kg2 {[%clk 0:00:05]}  h5 {[%clk 0:00:03]} 55. Bf3 {[%clk 0:00:06]}  h4 {[%clk 0:00:02]} 56. Bg4 {[%clk 0:00:06]}  hxg3 {[%clk 0:00:02]} 57. fxg3 {[%clk 0:00:07]}  Kb6 {[%clk 0:00:02]} 58. Nd7+ {[%clk 0:00:07]}  Kc7 {[%clk 0:00:03]} 59. Nxf6 {[%clk 0:00:08]}  a4 {[%clk 0:00:03]} 60. h4 {[%clk 0:00:08]}  Kb6 {[%clk 0:00:04]} 61. bxa4 {[%clk 0:00:08]}  Kc6 {[%clk 0:00:04]} 62. h5 {[%clk 0:00:08]}  Kb6 {[%clk 0:00:05]} 63. h6 {[%clk 0:00:08]}  Kc7 {[%clk 0:00:06]} 64. h7 {[%clk 0:00:09]}  Kc6 {[%clk 0:00:06]} 65. h8=Q {[%clk 0:00:09]}  Kb6 {[%clk 0:00:07]} 66. Qb8+ {[%clk 0:00:08]}  Kc6 {[%clk 0:00:08]} 67. Rd6+ {[%clk 0:00:08]}  Kc5 {[%clk 0:00:08]} 68. Qb6+ {[%clk 0:00:09]}  Kxc4 {[%clk 0:00:09]} 69. Rd4+ {[%clk 0:00:10]}  Kc3 {[%clk 0:00:09]} 70. Qb4+ {[%clk 0:00:10]}  Kc2 {[%clk 0:00:10]} 71. Rd2+ {[%clk 0:00:11]}  Kc1 {[%clk 0:00:11]} 72. Qb2# {[%clk 0:00:11]} 1-0


[Site "https://www.chess.com"]

[Event "Titled Tuesday Blitz March 01 Early 2022"]
[White "Araujo Filho, Luiz Antonio Coel"]
[Black "Khamdamova, Afruza"]
[WhiteFideId "2130661"]
[BlackFideId "14210444"]
[WhiteElo "2168"]
[BlackElo "1660"]
[Result "0-1"]
[Round "08"]
[TimeControl "180+1"]
[Date "2022.03.01"]
[WhiteClock "0:00:02"]
[BlackClock "0:00:45"]

1. d4 {[%clk 0:03:00]}  Nf6 {[%clk 0:02:58]} 2. Nf3 {[%clk 0:03:01]}  d5 {[%clk 0:02:57]} 3. e3 {[%clk 0:03:01]}  c5 {[%clk 0:02:57]} 4. c3 {[%clk 0:03:01]}  Nc6 {[%clk 0:02:56]} 5. Nbd2 {[%clk 0:03:01]}  Bf5 {[%clk 0:02:53]} 6. Qa4 {[%clk 0:03:01]}  e6 {[%clk 0:02:52]} 7. Bb5 {[%clk 0:02:59]}  Qb6 {[%clk 0:02:47]} 8. dxc5 {[%clk 0:02:52]}  Bxc5 {[%clk 0:02:47]} 9. Nd4 {[%clk 0:02:53]}  Rc8 {[%clk 0:02:44]} 10. Nxf5 {[%clk 0:02:51]}  exf5 {[%clk 0:02:44]} 11. O-O {[%clk 0:02:49]}  O-O {[%clk 0:02:42]} 12. Bd3 {[%clk 0:02:39]}  Ne7 {[%clk 0:02:41]} 13. Nb3 {[%clk 0:02:03]}  Bd6 {[%clk 0:02:34]} 14. Nd4 {[%clk 0:01:57]}  Ne4 {[%clk 0:02:07]} 15. Qd1 {[%clk 0:01:51]}  g6 {[%clk 0:02:02]} 16. a4 {[%clk 0:01:44]}  Bb8 {[%clk 0:02:00]} 17. f4 {[%clk 0:01:19]}  a6 {[%clk 0:01:59]} 18. Qf3 {[%clk 0:01:14]}  Qf6 {[%clk 0:01:56]} 19. h3 {[%clk 0:01:11]}  Qh4 {[%clk 0:01:47]} 20. Bxe4 {[%clk 0:00:48]}  dxe4 {[%clk 0:01:46]} 21. Qf2 {[%clk 0:00:45]}  Qf6 {[%clk 0:01:45]} 22. Bd2 {[%clk 0:00:38]}  Ba7 {[%clk 0:01:44]} 23. b4 {[%clk 0:00:37]}  Nd5 {[%clk 0:01:42]} 24. Rac1 {[%clk 0:00:34]}  Rfe8 {[%clk 0:01:40]} 25. Rfe1 {[%clk 0:00:24]}  Qd6 {[%clk 0:01:37]} 26. g4 {[%clk 0:00:20]}  Bxd4 {[%clk 0:01:34]} 27. cxd4 {[%clk 0:00:15]}  fxg4 {[%clk 0:01:32]} 28. hxg4 {[%clk 0:00:14]}  Nxb4 {[%clk 0:01:31]} 29. Rxc8 {[%clk 0:00:13]}  Rxc8 {[%clk 0:01:30]} 30. Rb1 {[%clk 0:00:14]}  Nd3 {[%clk 0:01:28]} 31. Qf1 {[%clk 0:00:11]}  Rc2 {[%clk 0:01:26]} 32. Be1 {[%clk 0:00:02]}  b6 {[%clk 0:01:23]} 33. Qh3 {[%clk 0:00:02]}  Ra2 {[%clk 0:01:19]} 34. f5 {[%clk 0:00:02]}  Rxa4 {[%clk 0:01:15]} 35. Bg3 {[%clk 0:00:02]}  Qa3 {[%clk 0:01:12]} 36. f6 {[%clk 0:00:02]}  Qa2 {[%clk 0:01:06]} 37. Rf1 {[%clk 0:00:02]}  h5 {[%clk 0:00:57]} 38. gxh5 {[%clk 0:00:02]}  g5 {[%clk 0:00:56]} 39. h6 {[%clk 0:00:02]}  Qd2 {[%clk 0:00:52]} 40. h7+ {[%clk 0:00:02]}  Kh8 {[%clk 0:00:51]} 41. Qh6 {[%clk 0:00:03]}  Qxe3+ {[%clk 0:00:50]} 42. Kg2 {[%clk 0:00:02]}  Ra2+ {[%clk 0:00:47]} 43. Kh3 {[%clk 0:00:02]}  g4+ {[%clk 0:00:45]} 0-1


[Site "https://www.chess.com"]

[Event "Titled Tuesday Blitz March 01 Early 2022"]
[White "Bashirli, Saadat"]
[Black "Bongo Akanga Ndjila, Barthelemy"]
[WhiteFideId "13429990"]
[BlackFideId "10609431"]
[WhiteElo "1173"]
[BlackElo "1803"]
[Result "1-0"]
[Round "08"]
[TimeControl "180+1"]
[Date "2022.03.01"]
[WhiteClock "0:01:53"]
[BlackClock "0:00:02"]

1. d4 {[%clk 0:03:00]}  g6 {[%clk 0:00:49]} 2. e4 {[%clk 0:02:57]}  d6 {[%clk 0:00:50]} 3. Be2 {[%clk 0:02:56]}  Bg7 {[%clk 0:00:51]} 4. h4 {[%clk 0:02:56]}  Nf6 {[%clk 0:00:51]} 5. Nc3 {[%clk 0:02:54]}  h5 {[%clk 0:00:51]} 6. Nf3 {[%clk 0:02:52]}  Bg4 {[%clk 0:00:49]} 7. O-O {[%clk 0:02:52]}  O-O {[%clk 0:00:49]} 8. Bg5 {[%clk 0:02:51]}  c6 {[%clk 0:00:48]} 9. Bd3 {[%clk 0:02:43]}  Nbd7 {[%clk 0:00:46]} 10. Re1 {[%clk 0:02:42]}  e5 {[%clk 0:00:42]} 11. dxe5 {[%clk 0:02:40]}  Nxe5 {[%clk 0:00:39]} 12. Be2 {[%clk 0:02:37]}  Bxf3 {[%clk 0:00:38]} 13. Bxf3 {[%clk 0:02:38]}  Qc7 {[%clk 0:00:36]} 14. Bf4 {[%clk 0:02:35]}  Nxf3+ {[%clk 0:00:33]} 15. Qxf3 {[%clk 0:02:36]}  Ng4 {[%clk 0:00:29]} 16. Rad1 {[%clk 0:02:35]}  Ne5 {[%clk 0:00:24]} 17. Qg3 {[%clk 0:02:32]}  Rad8 {[%clk 0:00:18]} 18. Re2 {[%clk 0:02:21]}  Nc4 {[%clk 0:00:17]} 19. b3 {[%clk 0:02:13]}  Ne5 {[%clk 0:00:14]} 20. Red2 {[%clk 0:02:11]}  Rfe8 {[%clk 0:00:11]} 21. Ne2 {[%clk 0:02:08]}  c5 {[%clk 0:00:09]} 22. Nc3 {[%clk 0:02:07]}  Qc6 {[%clk 0:00:08]} 23. Nd5 {[%clk 0:02:07]}  b5 {[%clk 0:00:07]} 24. Bg5 {[%clk 0:01:57]}  Rd7 {[%clk 0:00:02]} 25. Bf6 {[%clk 0:01:53]} 1-0


[Site "https://www.chess.com"]